Workbook

Sheet Task.1.1.
A1: Snohvit Gas Field, Prof. Michael Golan, Prof. Milan Stanko
A2: G (IGIP), Initial gas in place | B2: =270000000000 -> 270000000000 | C2: [Sm3] | G2: SOLVING EXPLANATION
A3: Production days per year (uptime) | B3: 360 | C3: [day] | G3: end of year 0 (Gp = 0 Sm^3, pR=276 bara)
A4: TR , reservoir temperature | B4: 92 | C4: [°C] | G4: 0 | H4: Set Gp=0 and DeltaGp=0. Calculate Rf as Gp/G
A5: pRi, initial reservoir pressure | B5: 276 | C5: [bara] | G5: 1 | H5: With qwell = 20E06 / 9, and using the IPR equation, calculate the pwf available
A6: CR, inflow backpressure coefficient | B6: 1000 | C6: [Sm3/bar^2n] | G6: 2 | H6: With the tubing equation, qwell and pwf, calculate pwh available .
A7: n, inflow backpressure exponent | B7: 1 | C7: [-] | G7: 3 | H7: With the pipeline equation, qfield = 20E06 Sm^3/d, and psep = 30 bara, Calculate the pplem required
A8: Ct, Tubing flow coefficient (2100 MDx0.15 ID m) | B8: 40288.19592 | C8: [Sm3/bar] | G8: 4 | H8: With the flowline equation, qtemplate and pplem calculate ptemplate required.
A9: S, Tubing elevation coefficient | B9: 0.155 | C9: [-] | G9: 5 | H9: Calculate dp choke by pwh-ptemp
A10: CFL , flowline coefficient from template-PLEM (5000x0.355 ID m) | B10: 283126.8662 | C10: [Sm3/bar] | G10: 6 | H10: Calculate Z for reservoir pressure using the ZfacStanding() VBA function
A11: CPL Pipeline coefficient from PLEM-Shore (158600x0.68 ID m) | B11: 275064.3927 | C11: [Sm3/bar] | G11: For next time steps
A12: Separator (slug catcher) pressure | B12: 30 | C12: [bara] | H12: Calculate deltaGp by using the trapezoidal rule (qfield_i + qfield_i-1)*(ti – t_i-1)*uptime*0.5 | R12: Suction T (Tplem) | S12: [C] | T12: 67
A13: Gas molecular weight (Methane) | B13: 16 | C13: [kg/kmole] | H13: Calculate Gp by summing the deltaGp of the timestep to the previous year Gp | R13: Adiabatic exponent, k | S13: [-] | T13: =k(B14) -> 1.299051676
A14: Gas specific gravity | B14: =$B$13/28.93 -> 0.5530591082 | C14: [-] | H14: Use the material balance equation to find pR at time 1. Use Z of the previous step. | R14: Compressor data
A15: Gas density at Sc | B15: =101325/((8314/(0.55*28.97))*(273.15+15.56)) -> 0.6725985864 | C15: [kg/m^3] | H15: Repeat steps 1-6 | R15: Polytropic efficiency, hp | S15: [-] | T15: 0.7
A16: Number of templates | B16: 3 | G16: When choke DP is negative | R16: Maximum compressor power | S16: [MW] | T16: 22
A17: Number of wells per template | B17: 3 | H17: Use goal seek to change qfield to get deltap choke = 0 | R17: Minimum suction pressure | S17: [bara] | T17: 15
A18: qfield | B18: 20000000 | C18: [Sm^3/d]
B20: time | C20: qfield | D20: DGp | E20: Gp | F20: Rf | G20: Z | H20: pR | I20: qwell | J20: pwf | K20: pwh | L20: ptemp | M20: pplem | N20: psep | O20: qtemp | P20: Dpchoke | Q20: psuc | R20: m | S20: Compressor power
B21: [years] | C21: [Sm^3/d] | D21: [Sm^3] | E21: [Sm^3] | F21: [-] | G21: [-] | H21: [bara] | I21: [Sm^3/d] | J21: [bara] | K21: [bara] | L21: [bara] | M21: [bara] | N21: [bara] | O21: [Sm^3/d] | P21: [bar] | Q21: [bara] | R21: [kg/s] | S21: [MW]
B22: 0 | C22: =$B$18 -> 20000000 | D22: 0 | E22: 0 | F22: =E22/$B$2 -> 0 | G22: =ZfacStanding(H22,$B$4,$B$14,2) -> 0.9672910643 | H22: =B5 -> 276 | I22: =C22/($B$17*$B$16) -> 2222222.222 | J22: =IPRpwf($B$6,$B$7,H22,I22) -> 271.9444388 | K22: =Tubingp2($B$8,$B$9,J22,I22) -> 245.5457525 | L22: =linep1($B$10,M22,O22) -> 82.10493911 | M22: =linep1($B$11,N22,C22) -> 78.65608719 | N22: =$B$12 -> 30 | O22: =C22/$B$16 -> 6666666.667 | P22: =K22-L22 -> 163.4408134
B23: 1 | C23: =$B$18 -> 20000000 | D23: =(C23+C22)*0.5*(B23-B22)*$B$3 -> 7200000000 | E23: =E22+D23 -> 7200000000 | F23: =E23/$B$2 -> 0.02666666667 | G23: =ZfacStanding(H23,$B$4,$B$14,2) -> 0.9626716683 | H23: =MBgastank_PR($H$22,$G$22,G22,F23) -> 268.64 | I23: =C23/($B$17*$B$16) -> 2222222.222 | J23: =IPRpwf($B$6,$B$7,H23,I23) -> 264.4716003 | K23: =Tubingp2($B$8,$B$9,J23,I23) -> 238.4527902 | L23: =linep1($B$10,M23,O23) -> 82.10493911 | M23: =linep1($B$11,N23,C23) -> 78.65608719 | N23: =$B$12 -> 30 | O23: =C23/$B$16 -> 6666666.667 | P23: =K23-L23 -> 156.3478511
B24: 2 | C24: =$B$18 -> 20000000 | D24: =(C24+C23)*0.5*(B24-B23)*$B$3 -> 7200000000 | E24: =E23+D24 -> 14400000000 | F24: =E24/$B$2 -> 0.05333333333 | G24: =ZfacStanding(H24,$B$4,$B$14,2) -> 0.9575559993 | H24: =MBgastank_PR($H$22,$G$22,G23,F24) -> 260.032231 | I24: =C24/($B$17*$B$16) -> 2222222.222 | J24: =IPRpwf($B$6,$B$7,H24,I24) -> 255.7235596 | K24: =Tubingp2($B$8,$B$9,J24,I24) -> 230.1357307 | L24: =linep1($B$10,M24,O24) -> 82.10493911 | M24: =linep1($B$11,N24,C24) -> 78.65608719 | N24: =$B$12 -> 30 | O24: =C24/$B$16 -> 6666666.667 | P24: =K24-L24 -> 148.0307916
B25: 3 | C25: 20000000 | D25: 7200000000 | E25: 21600000000 | F25: 0.08 | G25: =ZfacStanding(H25,$B$4,$B$14,2) -> 0.9527345012 | H25: =MBgastank_PR($H$22,$G$22,G24,F25) -> 251.3644841 | I25: 2222222.222 | J25: =IPRpwf($B$6,$B$7,H25,I25) -> 246.9046003 | K25: =Tubingp2($B$8,$B$9,J25,I25) -> 221.7346602 | L25: =linep1($B$10,M25,O25) -> 82.10493911 | M25: =linep1($B$11,N25,C25) -> 78.65608719 | N25: 30 | O25: 6666666.667 | P25: 139.6297211
B26: 4 | C26: 20000000 | D26: 7200000000 | E26: 28800000000 | F26: 0.1066666667 | G26: =ZfacStanding(H26,$B$4,$B$14,2) -> 0.9483380869 | H26: =MBgastank_PR($H$22,$G$22,G25,F26) -> 242.8495696 | I26: 2222222.222 | J26: =IPRpwf($B$6,$B$7,H26,I26) -> 238.2303323 | K26: =Tubingp2($B$8,$B$9,J26,I26) -> 213.4532768 | L26: =linep1($B$10,M26,O26) -> 82.10493911 | M26: =linep1($B$11,N26,C26) -> 78.65608719 | N26: 30 | O26: 6666666.667 | P26: 131.3483377
B27: 5 | C27: 20000000 | D27: 7200000000 | E27: 36000000000 | F27: 0.1333333333 | G27: =ZfacStanding(H27,$B$4,$B$14,2) -> 0.9443772231 | H27: =MBgastank_PR($H$22,$G$22,G26,F27) -> 234.5131458 | I27: 2222222.222 | J27: =IPRpwf($B$6,$B$7,H27,I27) -> 229.7263444 | K27: =Tubingp2($B$8,$B$9,J27,I27) -> 205.3148777 | L27: =linep1($B$10,M27,O27) -> 82.10493911 | M27: =linep1($B$11,N27,C27) -> 78.65608719 | N27: 30 | O27: 6666666.667 | P27: 123.2099386
B28: 6 | C28: 20000000 | D28: 7200000000 | E28: 43200000000 | F28: 0.16 | G28: =ZfacStanding(H28,$B$4,$B$14,2) -> 0.9408427307 | H28: =MBgastank_PR($H$22,$G$22,G27,F28) -> 226.3480182 | I28: 2222222.222 | J28: =IPRpwf($B$6,$B$7,H28,I28) -> 221.38474 | K28: =Tubingp2($B$8,$B$9,J28,I28) -> 197.310712 | L28: =linep1($B$10,M28,O28) -> 82.10493911 | M28: =linep1($B$11,N28,C28) -> 78.65608719 | N28: 30 | O28: 6666666.667 | P28: 115.2057729
B29: 7 | C29: 20000000 | D29: 7200000000 | E29: 50400000000 | F29: 0.1866666667 | G29: =ZfacStanding(H29,$B$4,$B$14,2) -> 0.9377229482 | H29: =MBgastank_PR($H$22,$G$22,G28,F29) -> 218.3421144 | I29: 2222222.222 | J29: =IPRpwf($B$6,$B$7,H29,I29) -> 213.1925343 | K29: =Tubingp2($B$8,$B$9,J29,I29) -> 189.4269084 | L29: =linep1($B$10,M29,O29) -> 82.10493911 | M29: =linep1($B$11,N29,C29) -> 78.65608719 | N29: 30 | O29: 6666666.667 | P29: 107.3219693
B30: 8 | C30: 20000000 | D30: 7200000000 | E30: 57600000000 | F30: 0.2133333333 | G30: =ZfacStanding(H30,$B$4,$B$14,2) -> 0.9350063582 | H30: =MBgastank_PR($H$22,$G$22,G29,F30) -> 210.4830842 | I30: 2222222.222 | J30: =IPRpwf($B$6,$B$7,H30,I30) -> 205.136312 | K30: =Tubingp2($B$8,$B$9,J30,I30) -> 181.6488532 | L30: =linep1($B$10,M30,O30) -> 82.10493911 | M30: =linep1($B$11,N30,C30) -> 78.65608719 | N30: 30 | O30: 6666666.667 | P30: 99.54391406
B31: 9 | C31: 20000000 | D31: 7200000000 | E31: 64800000000 | F31: 0.24 | G31: =ZfacStanding(H31,$B$4,$B$14,2) -> 0.9326819355 | H31: =MBgastank_PR($H$22,$G$22,G30,F31) -> 202.7589636 | I31: 2222222.222 | J31: =IPRpwf($B$6,$B$7,H31,I31) -> 197.202878 | K31: =Tubingp2($B$8,$B$9,J31,I31) -> 173.9617411 | L31: =linep1($B$10,M31,O31) -> 82.10493911 | M31: =linep1($B$11,N31,C31) -> 78.65608719 | N31: 30 | O31: 6666666.667 | P31: 91.85680196
B32: 10 | C32: 20000000 | D32: 7200000000 | E32: 72000000000 | F32: 0.2666666667 | G32: =ZfacStanding(H32,$B$4,$B$14,2) -> 0.9307391773 | H32: =MBgastank_PR($H$22,$G$22,G31,F32) -> 195.1582421 | I32: 2222222.222 | J32: =IPRpwf($B$6,$B$7,H32,I32) -> 189.3792947 | K32: =Tubingp2($B$8,$B$9,J32,I32) -> 166.3505208 | L32: =linep1($B$10,M32,O32) -> 82.10493911 | M32: =linep1($B$11,N32,C32) -> 78.65608719 | N32: 30 | O32: 6666666.667 | P32: 84.24558165
B33: 11 | C33: 20000000 | D33: 7200000000 | E33: 79200000000 | F33: 0.2933333333 | G33: =ZfacStanding(H33,$B$4,$B$14,2) -> 0.9291680937 | H33: =MBgastank_PR($H$22,$G$22,G32,F33) -> 187.6698502 | I33: 2222222.222 | J33: =IPRpwf($B$6,$B$7,H33,I33) -> 181.6528295 | K33: =Tubingp2($B$8,$B$9,J33,I33) -> 158.7997266 | L33: =linep1($B$10,M33,O33) -> 82.10493911 | M33: =linep1($B$11,N33,C33) -> 78.65608719 | N33: 30 | O33: 6666666.667 | P33: 76.69478746
B34: 12 | C34: 20000000 | D34: 7200000000 | E34: 86400000000 | F34: 0.32 | G34: =ZfacStanding(H34,$B$4,$B$14,2) -> 0.9279591948 | H34: =MBgastank_PR($H$22,$G$22,G33,F34) -> 180.2831374 | I34: 2222222.222 | J34: =IPRpwf($B$6,$B$7,H34,I34) -> 174.010883 | K34: =Tubingp2($B$8,$B$9,J34,I34) -> 151.2932528 | L34: =linep1($B$10,M34,O34) -> 82.10493911 | M34: =linep1($B$11,N34,C34) -> 78.65608719 | N34: 30 | O34: 6666666.667 | P34: 69.1883137
B35: 13 | C35: 20000000 | D35: 7200000000 | E35: 93600000000 | F35: 0.3466666667 | G35: =ZfacStanding(H35,$B$4,$B$14,2) -> 0.9271034785 | H35: =MBgastank_PR($H$22,$G$22,G34,F35) -> 172.9878505 | I35: 2222222.222 | J35: =IPRpwf($B$6,$B$7,H35,I35) -> 166.440903 | K35: =Tubingp2($B$8,$B$9,J35,I35) -> 143.81406 | L35: =linep1($B$10,M35,O35) -> 82.10493911 | M35: =linep1($B$11,N35,C35) -> 78.65608719 | N35: 30 | O35: 6666666.667 | P35: 61.70912085
B36: 14 | C36: 20000000 | D36: 7200000000 | E36: 100800000000 | F36: 0.3733333333 | G36: =ZfacStanding(H36,$B$4,$B$14,2) -> 0.9265924177 | H36: =MBgastank_PR($H$22,$G$22,G35,F36) -> 165.7741124 | I36: 2222222.222 | J36: =IPRpwf($B$6,$B$7,H36,I36) -> 158.9302807 | K36: =Tubingp2($B$8,$B$9,J36,I36) -> 136.3437852 | L36: =linep1($B$10,M36,O36) -> 82.10493911 | M36: =linep1($B$11,N36,C36) -> 78.65608719 | N36: 30 | O36: 6666666.667 | P36: 54.23884607
B37: 15 | C37: 20000000 | D37: 7200000000 | E37: 108000000000 | F37: 0.4 | G37: =ZfacStanding(H37,$B$4,$B$14,2) -> 0.9264179493 | H37: =MBgastank_PR($H$22,$G$22,G36,F37) -> 158.6324014 | I37: 2222222.222 | J37: =IPRpwf($B$6,$B$7,H37,I37) -> 151.4662225 | K37: =Tubingp2($B$8,$B$9,J37,I37) -> 128.8622133 | L37: =linep1($B$10,M37,O37) -> 82.10493911 | M37: =linep1($B$11,N37,C37) -> 78.65608719 | N37: 30 | O37: 6666666.667 | P37: 46.7572742
B38: 16 | C38: 20000000 | D38: 7200000000 | E38: 115200000000 | F38: 0.4266666667 | G38: =ZfacStanding(H38,$B$4,$B$14,2) -> 0.9265724636 | H38: =MBgastank_PR($H$22,$G$22,G37,F38) -> 151.553531 | I38: 2222222.222 | J38: =IPRpwf($B$6,$B$7,H38,I38) -> 144.0355877 | K38: =Tubingp2($B$8,$B$9,J38,I38) -> 121.3465397 | L38: =linep1($B$10,M38,O38) -> 82.10493911 | M38: =linep1($B$11,N38,C38) -> 78.65608719 | N38: 30 | O38: 6666666.667 | P38: 39.24160054
B39: 17 | C39: 20000000 | D39: 7200000000 | E39: 122400000000 | F39: 0.4533333333 | G39: =ZfacStanding(H39,$B$4,$B$14,2) -> 0.927048794 | H39: =MBgastank_PR($H$22,$G$22,G38,F39) -> 144.528631 | I39: 2222222.222 | J39: =IPRpwf($B$6,$B$7,H39,I39) -> 136.6246792 | K39: =Tubingp2($B$8,$B$9,J39,I39) -> 113.7703125 | L39: =linep1($B$10,M39,O39) -> 82.10493911 | M39: =linep1($B$11,N39,C39) -> 78.65608719 | N39: 30 | O39: 6666666.667 | P39: 31.66537341
B40: 18 | C40: 20000000 | D40: 7200000000 | E40: 129600000000 | F40: 0.48 | G40: =ZfacStanding(H40,$B$4,$B$14,2) -> 0.9278402081 | H40: =MBgastank_PR($H$22,$G$22,G39,F40) -> 137.5491285 | I40: 2222222.222 | J40: =IPRpwf($B$6,$B$7,H40,I40) -> 129.2189635 | K40: =Tubingp2($B$8,$B$9,J40,I40) -> 106.1018661 | L40: =linep1($B$10,M40,O40) -> 82.10493911 | M40: =linep1($B$11,N40,C40) -> 78.65608719 | N40: 30 | O40: 6666666.667 | P40: 23.99692697
B41: 19 | C41: 20000000 | D41: 7200000000 | E41: 136800000000 | F41: 0.5066666667 | G41: =ZfacStanding(H41,$B$4,$B$14,2) -> 0.9289403998 | H41: =MBgastank_PR($H$22,$G$22,G40,F41) -> 130.6067299 | I41: 2222222.222 | J41: =IPRpwf($B$6,$B$7,H41,I41) -> 121.8026915 | K41: =Tubingp2($B$8,$B$9,J41,I41) -> 98.30190774 | L41: =linep1($B$10,M41,O41) -> 82.10493911 | M41: =linep1($B$11,N41,C41) -> 78.65608719 | N41: 30 | O41: 6666666.667 | P41: 16.19696863
B42: 20 | C42: 20000000 | D42: 7200000000 | E42: 144000000000 | F42: 0.5333333333 | G42: =ZfacStanding(H42,$B$4,$B$14,2) -> 0.930343482 | H42: =MBgastank_PR($H$22,$G$22,G41,F42) -> 123.6934031 | I42: 2222222.222 | J42: =IPRpwf($B$6,$B$7,H42,I42) -> 114.3583654 | K42: =Tubingp2($B$8,$B$9,J42,I42) -> 90.31963166 | L42: =linep1($B$10,M42,O42) -> 82.10493911 | M42: =linep1($B$11,N42,C42) -> 78.65608719 | N42: 30 | O42: 6666666.667 | P42: 8.214692543
B43: 21 | C43: 20000000 | D43: 7200000000 | E43: 151200000000 | F43: 0.56 | G43: =ZfacStanding(H43,$B$4,$B$14,2) -> 0.9320439811 | H43: =MBgastank_PR($H$22,$G$22,G42,F43) -> 116.8013607 | I43: 2222222.222 | J43: =IPRpwf($B$6,$B$7,H43,I43) -> 106.8659704 | K43: =Tubingp2($B$8,$B$9,J43,I43) -> 82.08609878 | L43: =linep1($B$10,M43,O43) -> 82.10493911 | M43: =linep1($B$11,N43,C43) -> 78.65608719 | N43: 30 | O43: 6666666.667 | P43: -0.0188403381
B44: 22 | C44: 18643451.33 | D44: 6955821239 | E44: 1.581558212e+11 | F44: 0.5857623009 | G44: =ZfacStanding(H44,$B$4,$B$14,2) -> 0.9339622229 | H44: =MBgastank_PR($H$22,$G$22,G43,F44) -> 110.1635527 | I44: 2071494.592 | J44: =IPRpwf($B$6,$B$7,H44,I44) -> 100.3220502 | K44: =Tubingp2($B$8,$B$9,J44,I44) -> 77.3026751 | L44: =linep1($B$10,M44,O44) -> 77.3026769 | M44: =linep1($B$11,N44,C44) -> 74.12101429 | N44: 30 | O44: 6214483.776 | P44: -1.804047386e-06
B45: 23 | C45: 17378725.68 | D45: 6483991861 | E45: 1.646398131e+11 | F45: 0.6097770856 | G45: =ZfacStanding(H45,$B$4,$B$14,2) -> 0.9359887423 | H45: =MBgastank_PR($H$22,$G$22,G44,F45) -> 103.9905762 | I45: 1930969.52 | J45: =IPRpwf($B$6,$B$7,H45,I45) -> 94.250042 | K45: =Tubingp2($B$8,$B$9,J45,I45) -> 72.87259725 | L45: =linep1($B$10,M45,O45) -> 72.87259764 | M45: =linep1($B$11,N45,C45) -> 69.94129454 | N45: 30 | O45: 5792908.559 | P45: -3.883136657e-07
B46: 24 | C46: 16193913.44 | D46: 6043075040 | E46: 1.706828881e+11 | F46: 0.632158845 | G46: =ZfacStanding(H46,$B$4,$B$14,2) -> 0.9380833783 | H46: =MBgastank_PR($H$22,$G$22,G45,F46) -> 98.23875482 | I46: 1799323.715 | J46: =IPRpwf($B$6,$B$7,H46,I46) -> 88.60885527 | K46: =Tubingp2($B$8,$B$9,J46,I46) -> 68.7716217 | L46: =linep1($B$10,M46,O46) -> 68.77169379 | M46: =linep1($B$11,N46,C46) -> 66.07609581 | N46: 30 | O46: 5397971.145 | P46: -7.208924089e-05
B47: 25 | C47: 15082980.51 | D47: 5629840911 | E47: 1.763127291e+11 | F47: 0.6530101076 | G47: =ZfacStanding(H47,$B$4,$B$14,2) -> 0.9402114825 | H47: =MBgastank_PR($H$22,$G$22,G46,F47) -> 92.87742609 | I47: 1675886.723 | J47: =IPRpwf($B$6,$B$7,H47,I47) -> 83.36863652 | K47: =Tubingp2($B$8,$B$9,J47,I47) -> 64.97706382 | L47: =linep1($B$10,M47,O47) -> 64.97799969 | M47: =linep1($B$11,N47,C47) -> 62.50445797 | N47: 30 | O47: 5027660.17 | P47: -0.0009358671022
B48: 26 | C48: 14040038.56 | D48: =(C48+C47)*0.5*(B48-B47)*$B$3 -> 5242143433 | E48: =E47+D48 -> 1.815548725e+11 | F48: 0.6724254536 | G48: =ZfacStanding(H48,$B$4,$B$14,2) -> 0.9423448618 | H48: =MBgastank_PR($H$22,$G$22,G47,F48) -> 87.87950567 | I48: =C48/($B$17*$B$16) -> 1560004.284 | J48: =IPRpwf($B$6,$B$7,H48,I48) -> 78.50352369 | K48: =Tubingp2($B$8,$B$9,J48,I48) -> 61.47025846 | L48: =linep1($B$10,M48,O48) -> 61.47026027 | M48: =linep1($B$11,N48,C48) -> 59.20608641 | N48: 30 | O48: =C48/$B$16 -> 4680012.853 | P48: =K48-L48 -> -1.813784834e-06
B49: 27
B50: 28
B51: 29
B52: 30

Sheet Task.1.2.
A1: Gas price | B1: 0.1 | C1: [usd/Sm^3] | H1: SOLVING EXPLANATION
A2: Discount rate | B2: 5 | C2: [%] | I2: Add expenses as indicated in the problem text
A3: DRILLEX | I3: Production starts at end of year 5, so, there will be volume produced from year 6. Link this year to the deltaGp for time "1" in the previous Task1.1. and drag for subsequent time steps
A4: Well cost | B4: 100 | C4: [1E06 USD] | D4: (4 wells maximum per year) | I4: Calculate revenue by multiplying yearly gas offtake by gas price
A5: CAPEX | I5: Opex applies from end of year 6
A6: Pipeline and umbilicals | B6: 500 | C6: [1E06 USD] | D6: (paid in years 1 and 2) | I6: For each year, calculate cash flow by summing revenue minus expenses. Remove years at the end for which there is no production
A7: Cost LNG plant | B7: 3200 | C7: [1E06 USD] | D7: (paid in years 1 and 2) | I7: discount cash flow by dividing by discount factor (1+i)^t
A8: Cost of LNG carriers | B8: 800 | C8: [1E06 USD] | D8: (paid in years 1 and 2) | I8: sum all discounted cash flow to find project NPV
A9: OPEX
A10: OPEX | B10: 200 | C10: [1E06 USD] | D10: (paid anually when production starts)
M11: NPV [1E06 USD]= | N11: =SUM(M15:M45) -> 710.7267603
C12: CAPITAL EXPENSES
B13: End of year | C13: Nwells | D13: DRILLEX | E13: Pipeline & umbilicals | F13: LNG Plant | G13: LNG vessels | H13: TOTAL CAPEX | I13: Yearly gas offtake | J13: Revenues | K13: OPEX | L13: Cash flow | M13: Discounted cash flow | N13: NPV
B14: [-] | C14: [-] | D14: [1E06 USD] | E14: [1E06 USD] | F14: [1E06 USD] | G14: [1E06 USD] | H14: [1E06 USD] | I14: [Sm^3] | J14: [1E06 USD] | K14: [1E06 USD] | L14: [1E06 USD] | M14: [1E06 USD] | N14: [1E06 USD]
B15: 1 | C15: 4 | D15: =C15*$B$4 -> 400 | E15: =$B$6/2 -> 250 | F15: =$B$7/2 -> 1600 | G15: =$B$8/2 -> 400 | H15: =G15+F15+E15+D15 -> 2650 | I15: 0 | J15: =I15*$B$1/1000000 -> 0 | K15: 0 | L15: =J15-K15-H15 -> -2650 | M15: =L15/((1+$B$2/100)^B15) -> -2523.809524 | N15: =M15 -> -2523.809524
B16: 2 | C16: 4 | D16: 400 | E16: =$B$6/2 -> 250 | F16: =$B$7/2 -> 1600 | G16: =$B$8/2 -> 400 | H16: =G16+F16+E16+D16 -> 2650 | I16: 0 | J16: =I16*$B$1/1000000 -> 0 | K16: 0 | L16: =J16-K16-H16 -> -2650 | M16: =L16/((1+$B$2/100)^B16) -> -2403.628118 | N16: =N15+M16 -> -4927.437642
B17: 3 | C17: 1 | D17: 100 | E17: 0 | F17: 0 | G17: 0 | H17: 100 | I17: 0 | J17: 0 | K17: 0 | L17: -100 | M17: -86.38375985 | N17: =N16+M17 -> -5013.821402
B18: 4 | C18: 0 | D18: 0 | E18: 0 | F18: 0 | G18: 0 | H18: 0 | I18: 0 | J18: 0 | K18: 0 | L18: 0 | M18: 0 | N18: -5013.821402
A19: PROD STARTS--> | B19: 5 | C19: 0 | D19: 0 | E19: 0 | F19: 0 | G19: 0 | H19: 0 | I19: ='Task.1.1.'!D22 -> 0 | J19: 0 | K19: 0 | L19: 0 | M19: 0 | N19: -5013.821402
B20: 6 | C20: 0 | D20: 0 | E20: 0 | F20: 0 | G20: 0 | H20: 0 | I20: ='Task.1.1.'!D23 -> 7200000000 | J20: 720 | K20: =$B$10 -> 200 | L20: 520 | M20: 388.0320063 | N20: -4625.789395
B21: 7 | C21: 0 | D21: 0 | E21: 0 | F21: 0 | G21: 0 | H21: 0 | I21: ='Task.1.1.'!D24 -> 7200000000 | J21: 720 | K21: 200 | L21: 520 | M21: 369.5542917 | N21: -4256.235104
B22: 8 | C22: 0 | D22: 0 | E22: 0 | F22: 0 | G22: 0 | H22: 0 | I22: ='Task.1.1.'!D25 -> 7200000000 | J22: 720 | K22: 200 | L22: 520 | M22: 351.9564683 | N22: -3904.278635
B23: 9 | C23: 0 | D23: 0 | E23: 0 | F23: 0 | G23: 0 | H23: 0 | I23: ='Task.1.1.'!D26 -> 7200000000 | J23: 720 | K23: 200 | L23: 520 | M23: 335.1966364 | N23: -3569.081999
B24: 10 | C24: 0 | D24: 0 | E24: 0 | F24: 0 | G24: 0 | H24: 0 | I24: ='Task.1.1.'!D27 -> 7200000000 | J24: 720 | K24: 200 | L24: 520 | M24: 319.2348918 | N24: -3249.847107
B25: 11 | C25: 0 | D25: 0 | E25: 0 | F25: 0 | G25: 0 | H25: 0 | I25: ='Task.1.1.'!D28 -> 7200000000 | J25: 720 | K25: 200 | L25: 520 | M25: 304.0332303 | N25: -2945.813877
B26: 12 | C26: 0 | D26: 0 | E26: 0 | F26: 0 | G26: 0 | H26: 0 | I26: ='Task.1.1.'!D29 -> 7200000000 | J26: 720 | K26: 200 | L26: 520 | M26: 289.5554575 | N26: -2656.258419
B27: 13 | C27: 0 | D27: 0 | E27: 0 | F27: 0 | G27: 0 | H27: 0 | I27: ='Task.1.1.'!D30 -> 7200000000 | J27: 720 | K27: 200 | L27: 520 | M27: 275.7671023 | N27: -2380.491317
B28: 14 | C28: 0 | D28: 0 | E28: 0 | F28: 0 | G28: 0 | H28: 0 | I28: ='Task.1.1.'!D31 -> 7200000000 | J28: 720 | K28: 200 | L28: 520 | M28: 262.6353356 | N28: -2117.855981
B29: 15 | C29: 0 | D29: 0 | E29: 0 | F29: 0 | G29: 0 | H29: 0 | I29: ='Task.1.1.'!D32 -> 7200000000 | J29: 720 | K29: 200 | L29: 520 | M29: 250.128891 | N29: -1867.72709
B30: 16 | C30: 0 | D30: 0 | E30: 0 | F30: 0 | G30: 0 | H30: 0 | I30: ='Task.1.1.'!D33 -> 7200000000 | J30: 720 | K30: 200 | L30: 520 | M30: 238.2179914 | N30: -1629.509099
B31: 17 | C31: 0 | D31: 0 | E31: 0 | F31: 0 | G31: 0 | H31: 0 | I31: ='Task.1.1.'!D34 -> 7200000000 | J31: 720 | K31: 200 | L31: 520 | M31: 226.8742776 | N31: -1402.634821
B32: 18 | C32: 0 | D32: 0 | E32: 0 | F32: 0 | G32: 0 | H32: 0 | I32: ='Task.1.1.'!D35 -> 7200000000 | J32: 720 | K32: 200 | L32: 520 | M32: 216.0707405 | N32: -1186.564081
B33: 19 | C33: 0 | D33: 0 | E33: 0 | F33: 0 | G33: 0 | H33: 0 | I33: ='Task.1.1.'!D36 -> 7200000000 | J33: 720 | K33: 200 | L33: 520 | M33: 205.7816576 | N33: -980.7824233
B34: 20 | C34: 0 | D34: 0 | E34: 0 | F34: 0 | G34: 0 | H34: 0 | I34: ='Task.1.1.'!D37 -> 7200000000 | J34: 720 | K34: 200 | L34: 520 | M34: 195.9825311 | N34: -784.7998922
B35: 21 | C35: 0 | D35: 0 | E35: 0 | F35: 0 | G35: 0 | H35: 0 | I35: ='Task.1.1.'!D38 -> 7200000000 | J35: 720 | K35: 200 | L35: 520 | M35: 186.6500296 | N35: -598.1498626
B36: 22 | C36: 0 | D36: 0 | E36: 0 | F36: 0 | G36: 0 | H36: 0 | I36: ='Task.1.1.'!D39 -> 7200000000 | J36: 720 | K36: 200 | L36: 520 | M36: 177.761933 | N36: -420.3879296
B37: 23 | C37: 0 | D37: 0 | E37: 0 | F37: 0 | G37: 0 | H37: 0 | I37: ='Task.1.1.'!D40 -> 7200000000 | J37: 720 | K37: 200 | L37: 520 | M37: 169.297079 | N37: -251.0908506
B38: 24 | C38: 0 | D38: 0 | E38: 0 | F38: 0 | G38: 0 | H38: 0 | I38: ='Task.1.1.'!D41 -> 7200000000 | J38: 720 | K38: 200 | L38: 520 | M38: 161.2353133 | N38: -89.85553724
B39: 25 | C39: 0 | D39: 0 | E39: 0 | F39: 0 | G39: 0 | H39: 0 | I39: ='Task.1.1.'!D42 -> 7200000000 | J39: 720 | K39: 200 | L39: 520 | M39: 153.5574413 | N39: 63.70190404
B40: 26 | C40: 0 | D40: 0 | E40: 0 | F40: 0 | G40: 0 | H40: 0 | I40: ='Task.1.1.'!D43 -> 7200000000 | J40: 720 | K40: 200 | L40: 520 | M40: 146.2451822 | N40: 209.9470862
B41: 27 | C41: 0 | D41: 0 | E41: 0 | F41: 0 | G41: 0 | H41: 0 | I41: ='Task.1.1.'!D44 -> 6955821239 | J41: 695.5821239 | K41: 200 | L41: 495.5821239 | M41: 132.7408388 | N41: 342.687925
B42: 28 | C42: 0 | D42: 0 | E42: 0 | F42: 0 | G42: 0 | H42: 0 | I42: ='Task.1.1.'!D45 -> 6483991861 | J42: 648.3991861 | K42: 200 | L42: 448.3991861 | M42: 114.3837793 | N42: 457.0717043
B43: 29 | C43: 0 | D43: 0 | E43: 0 | F43: 0 | G43: 0 | H43: 0 | I43: ='Task.1.1.'!D46 -> 6043075040 | J43: 604.307504 | K43: 200 | L43: 404.307504 | M43: 98.2250207 | N43: 555.296725
B44: 30 | C44: 0 | D44: 0 | E44: 0 | F44: 0 | G44: 0 | H44: 0 | I44: ='Task.1.1.'!D47 -> 5629840911 | J44: 562.9840911 | K44: 200 | L44: 362.9840911 | M44: 83.98633289 | N44: 639.2830579
B45: 31 | C45: 0 | D45: 0 | E45: 0 | F45: 0 | G45: 0 | H45: 0 | I45: ='Task.1.1.'!D48 -> 5242143433 | J45: 524.2143433 | K45: 200 | L45: 324.2143433 | M45: 71.44370244 | N45: 710.7267603

Sheet Task.2.2.
A1: Snohvit Gas Field, Prof. Michael Golan, Prof. Milan Stanko | E1: SOLVING EXPLANATION
A2: G (IGIP), Initial gas in place | B2: =270000000000 -> 270000000000 | C2: [Sm3] | F2: Task 2.1. Measures to prolong plateau:
A3: Production days per year (uptime) | B3: 360 | C3: [day] | G3: increase formation productivity (fracking, acidizing). Available pressure at wellhead is larger and therefore Dpchoke becomes negative at a later time.
A4: TR , reservoir temperature | B4: 92 | C4: [°C] | G4: Drill more wells. Available pressure at wellhead is larger and therefore Dpchoke becomes negative at a later time.
A5: pRi, initial reservoir pressure | B5: 276 | C5: [bara] | G5: Increase tubing size or flowline diameter. Available pressure at wellhead is larger and therefore Dpchoke becomes negative at a later time.
A6: CR, inflow backpressure coefficient | B6: 1000 | C6: [Sm3/bar^2n] | G6: Increase pipeline diameter or put another pipeline in parallel. Required pressure at the plem will be lower, and therefore Dpchoke becomes negative at a later time
A7: n, inflow backpressure exponent | B7: 1 | C7: [-] | G7: Install a compressor (provides energy to match the difference between available and required pressure post plateau.
A8: Ct, Tubing flow coefficient (2100 MDx0.15 ID m) | B8: 40288.19592 | C8: [Sm3/bar] | F8: Task 2.2. Measured chosen: Drill 3 more wells
A9: S, Tubing elevation coefficient | B9: 0.155 | C9: [-] | G9: Repeat procedure given in task 1.1.
A10: CFL , flowline coefficient from template-PLEM (5000x0.355 ID m) | B10: 283126.8662 | C10: [Sm3/bar] | G10: When choke becomes negative, use the goalseek to change year until Dpchoke is exactly equal to Zero.
A11: CPL Pipeline coefficient from PLEM-Shore (158600x0.68 ID m) | B11: 275064.3927 | C11: [Sm3/bar] | G11: 3 more wells give 1.4 additional plateau years.
A12: Separator (slug catcher) pressure | B12: 30 | C12: [bara] | R12: Suction T (Tplem) | S12: [C] | T12: 67
A13: Gas molecular weight (Methane) | B13: 16 | C13: [kg/kmole] | R13: Adiabatic exponent, k | S13: [-] | T13: =k(B14) -> 1.299051676
A14: Gas specific gravity | B14: =$B$13/28.93 -> 0.5530591082 | C14: [-] | R14: Compressor data
A15: Gas density at Sc | B15: =101325/((8314/(0.55*28.97))*(273.15+15.56)) -> 0.6725985864 | C15: [kg/m^3] | R15: Polytropic efficiency, hp | S15: [-] | T15: 0.7
A16: Number of templates | B16: 3 | R16: Maximum compressor power | S16: [MW] | T16: 22
A17: Number of wells per template | B17: 4 | R17: Minimum suction pressure | S17: [bara] | T17: 15
A18: qfield | B18: 20000000 | C18: [Sm^3/d]
B20: time | C20: qfield | D20: DGp | E20: Gp | F20: Rf | G20: Z | H20: pR | I20: qwell | J20: pwf | K20: pwh | L20: ptemp | M20: pplem | N20: psep | O20: qtemp | P20: Dpchoke | Q20: psuc | R20: Dp comp | S20: m | T20: Compressor power
B21: [years] | C21: [Sm^3/d] | D21: [Sm^3] | E21: [Sm^3] | F21: [-] | G21: [-] | H21: [bara] | I21: [Sm^3/d] | J21: [bara] | K21: [bara] | L21: [bara] | M21: [bara] | N21: [bara] | O21: [Sm^3/d] | P21: [bar] | Q21: [bara] | R21: [bar] | S21: [kg/s] | T21: [MW]
B22: 0 | C22: =$B$18 -> 20000000 | D22: 0 | E22: 0 | F22: =E22/$B$2 -> 0 | G22: =ZfacStanding(H22,$B$4,$B$14,2) -> 0.9672910643 | H22: =B5 -> 276 | I22: =C22/($B$17*$B$16) -> 1666666.667 | J22: =IPRpwf($B$6,$B$7,H22,I22) -> 272.9639781 | K22: =Tubingp2($B$8,$B$9,J22,I22) -> 249.1978371 | L22: =linep1($B$10,M22,O22) -> 82.10493911 | M22: =linep1($B$11,N22,C22) -> 78.65608719 | N22: =$B$12 -> 30 | O22: =C22/$B$16 -> 6666666.667 | P22: =K22-L22 -> 167.092898
B23: 1 | C23: =$B$18 -> 20000000 | D23: =(C23+C22)*0.5*(B23-B22)*$B$3 -> 7200000000 | E23: =E22+D23 -> 7200000000 | F23: =E23/$B$2 -> 0.02666666667 | G23: =ZfacStanding(H23,$B$4,$B$14,2) -> 0.9626716683 | H23: =MBgastank_PR($H$22,$G$22,G22,F23) -> 268.64 | I23: =C23/($B$17*$B$16) -> 1666666.667 | J23: =IPRpwf($B$6,$B$7,H23,I23) -> 265.5198353 | K23: =Tubingp2($B$8,$B$9,J23,I23) -> 242.2118466 | L23: =linep1($B$10,M23,O23) -> 82.10493911 | M23: =linep1($B$11,N23,C23) -> 78.65608719 | N23: =$B$12 -> 30 | O23: =C23/$B$16 -> 6666666.667 | P23: =K23-L23 -> 160.1069075
B24: 2 | C24: =$B$18 -> 20000000 | D24: =(C24+C23)*0.5*(B24-B23)*$B$3 -> 7200000000 | E24: =E23+D24 -> 14400000000 | F24: =E24/$B$2 -> 0.05333333333 | G24: =ZfacStanding(H24,$B$4,$B$14,2) -> 0.9575559993 | H24: =MBgastank_PR($H$22,$G$22,G23,F24) -> 260.032231 | I24: =C24/($B$17*$B$16) -> 1666666.667 | J24: =IPRpwf($B$6,$B$7,H24,I24) -> 256.8075048 | K24: =Tubingp2($B$8,$B$9,J24,I24) -> 234.0284171 | L24: =linep1($B$10,M24,O24) -> 82.10493911 | M24: =linep1($B$11,N24,C24) -> 78.65608719 | N24: =$B$12 -> 30 | O24: =C24/$B$16 -> 6666666.667 | P24: =K24-L24 -> 151.9234779
B25: 3 | C25: 20000000 | D25: 7200000000 | E25: 21600000000 | F25: 0.08 | G25: =ZfacStanding(H25,$B$4,$B$14,2) -> 0.9527345012 | H25: =MBgastank_PR($H$22,$G$22,G24,F25) -> 251.3644841 | I25: 1666666.667 | J25: =IPRpwf($B$6,$B$7,H25,I25) -> 248.0270896 | K25: =Tubingp2($B$8,$B$9,J25,I25) -> 225.7722414 | L25: =linep1($B$10,M25,O25) -> 82.10493911 | M25: =linep1($B$11,N25,C25) -> 78.65608719 | N25: 30 | O25: 6666666.667 | P25: 143.6673023
B26: 4 | C26: 20000000 | D26: 7200000000 | E26: 28800000000 | F26: 0.1066666667 | G26: =ZfacStanding(H26,$B$4,$B$14,2) -> 0.9483380869 | H26: =MBgastank_PR($H$22,$G$22,G25,F26) -> 242.8495696 | I26: 1666666.667 | J26: =IPRpwf($B$6,$B$7,H26,I26) -> 239.3934978 | K26: =Tubingp2($B$8,$B$9,J26,I26) -> 217.6445424 | L26: =linep1($B$10,M26,O26) -> 82.10493911 | M26: =linep1($B$11,N26,C26) -> 78.65608719 | N26: 30 | O26: 6666666.667 | P26: 135.5396033
B27: 5 | C27: 20000000 | D27: 7200000000 | E27: 36000000000 | F27: 0.1333333333 | G27: =ZfacStanding(H27,$B$4,$B$14,2) -> 0.9443772231 | H27: =MBgastank_PR($H$22,$G$22,G26,F27) -> 234.5131458 | I27: 1666666.667 | J27: =IPRpwf($B$6,$B$7,H27,I27) -> 230.932347 | K27: =Tubingp2($B$8,$B$9,J27,I27) -> 209.6688924 | L27: =linep1($B$10,M27,O27) -> 82.10493911 | M27: =linep1($B$11,N27,C27) -> 78.65608719 | N27: 30 | O27: 6666666.667 | P27: 127.5639533
B28: 6 | C28: 20000000 | D28: 7200000000 | E28: 43200000000 | F28: 0.16 | G28: =ZfacStanding(H28,$B$4,$B$14,2) -> 0.9408427307 | H28: =MBgastank_PR($H$22,$G$22,G27,F28) -> 226.3480182 | I28: 1666666.667 | J28: =IPRpwf($B$6,$B$7,H28,I28) -> 222.635933 | K28: =Tubingp2($B$8,$B$9,J28,I28) -> 201.8374656 | L28: =linep1($B$10,M28,O28) -> 82.10493911 | M28: =linep1($B$11,N28,C28) -> 78.65608719 | N28: 30 | O28: 6666666.667 | P28: 119.7325265
B29: 7 | C29: 20000000 | D29: 7200000000 | E29: 50400000000 | F29: 0.1866666667 | G29: =ZfacStanding(H29,$B$4,$B$14,2) -> 0.9377229482 | H29: =MBgastank_PR($H$22,$G$22,G28,F29) -> 218.3421144 | I29: 1666666.667 | J29: =IPRpwf($B$6,$B$7,H29,I29) -> 214.4915202 | K29: =Tubingp2($B$8,$B$9,J29,I29) -> 194.1375777 | L29: =linep1($B$10,M29,O29) -> 82.10493911 | M29: =linep1($B$11,N29,C29) -> 78.65608719 | N29: 30 | O29: 6666666.667 | P29: 112.0326386
B30: 8 | C30: 20000000 | D30: 7200000000 | E30: 57600000000 | F30: 0.2133333333 | G30: =ZfacStanding(H30,$B$4,$B$14,2) -> 0.9350063582 | H30: =MBgastank_PR($H$22,$G$22,G29,F30) -> 210.4830842 | I30: 1666666.667 | J30: =IPRpwf($B$6,$B$7,H30,I30) -> 206.4859851 | K30: =Tubingp2($B$8,$B$9,J30,I30) -> 186.5560273 | L30: =linep1($B$10,M30,O30) -> 82.10493911 | M30: =linep1($B$11,N30,C30) -> 78.65608719 | N30: 30 | O30: 6666666.667 | P30: 104.4510882
B31: 9 | C31: 20000000 | D31: 7200000000 | E31: 64800000000 | F31: 0.24 | G31: =ZfacStanding(H31,$B$4,$B$14,2) -> 0.9326819355 | H31: =MBgastank_PR($H$22,$G$22,G30,F31) -> 202.7589636 | I31: 1666666.667 | J31: =IPRpwf($B$6,$B$7,H31,I31) -> 198.6064718 | K31: =Tubingp2($B$8,$B$9,J31,I31) -> 179.0796829 | L31: =linep1($B$10,M31,O31) -> 82.10493911 | M31: =linep1($B$11,N31,C31) -> 78.65608719 | N31: 30 | O31: 6666666.667 | P31: 96.97474377
B32: 10 | C32: 20000000 | D32: 7200000000 | E32: 72000000000 | F32: 0.2666666667 | G32: =ZfacStanding(H32,$B$4,$B$14,2) -> 0.9307391773 | H32: =MBgastank_PR($H$22,$G$22,G31,F32) -> 195.1582421 | I32: 1666666.667 | J32: =IPRpwf($B$6,$B$7,H32,I32) -> 190.8404381 | K32: =Tubingp2($B$8,$B$9,J32,I32) -> 171.6954898 | L32: =linep1($B$10,M32,O32) -> 82.10493911 | M32: =linep1($B$11,N32,C32) -> 78.65608719 | N32: 30 | O32: 6666666.667 | P32: 89.5905507
B33: 11 | C33: 20000000 | D33: 7200000000 | E33: 79200000000 | F33: 0.2933333333 | G33: =ZfacStanding(H33,$B$4,$B$14,2) -> 0.9291680937 | H33: =MBgastank_PR($H$22,$G$22,G32,F33) -> 187.6698502 | I33: 1666666.667 | J33: =IPRpwf($B$6,$B$7,H33,I33) -> 183.1756152 | K33: =Tubingp2($B$8,$B$9,J33,I33) -> 164.3903848 | L33: =linep1($B$10,M33,O33) -> 82.10493911 | M33: =linep1($B$11,N33,C33) -> 78.65608719 | N33: 30 | O33: 6666666.667 | P33: 82.28544572
B34: 12 | C34: 20000000 | D34: 7200000000 | E34: 86400000000 | F34: 0.32 | G34: =ZfacStanding(H34,$B$4,$B$14,2) -> 0.9279591948 | H34: =MBgastank_PR($H$22,$G$22,G33,F34) -> 180.2831374 | I34: 1666666.667 | J34: =IPRpwf($B$6,$B$7,H34,I34) -> 175.5999515 | K34: =Tubingp2($B$8,$B$9,J34,I34) -> 157.1511814 | L34: =linep1($B$10,M34,O34) -> 82.10493911 | M34: =linep1($B$11,N34,C34) -> 78.65608719 | N34: 30 | O34: 6666666.667 | P34: 75.04624227
B35: 13 | C35: 20000000 | D35: 7200000000 | E35: 93600000000 | F35: 0.3466666667 | G35: =ZfacStanding(H35,$B$4,$B$14,2) -> 0.9271034785 | H35: =MBgastank_PR($H$22,$G$22,G34,F35) -> 172.9878505 | I35: 1666666.667 | J35: =IPRpwf($B$6,$B$7,H35,I35) -> 168.1015459 | K35: =Tubingp2($B$8,$B$9,J35,I35) -> 149.9644268 | L35: =linep1($B$10,M35,O35) -> 82.10493911 | M35: =linep1($B$11,N35,C35) -> 78.65608719 | N35: 30 | O35: 6666666.667 | P35: 67.85948769
B36: 14 | C36: 20000000 | D36: 7200000000 | E36: 100800000000 | F36: 0.3733333333 | G36: =ZfacStanding(H36,$B$4,$B$14,2) -> 0.9265924177 | H36: =MBgastank_PR($H$22,$G$22,G35,F36) -> 165.7741124 | I36: 1666666.667 | J36: =IPRpwf($B$6,$B$7,H36,I36) -> 160.6685709 | K36: =Tubingp2($B$8,$B$9,J36,I36) -> 142.8162218 | L36: =linep1($B$10,M36,O36) -> 82.10493911 | M36: =linep1($B$11,N36,C36) -> 78.65608719 | N36: 30 | O36: 6666666.667 | P36: 60.71128273
B37: 15 | C37: 20000000 | D37: 7200000000 | E37: 108000000000 | F37: 0.4 | G37: =ZfacStanding(H37,$B$4,$B$14,2) -> 0.9264179493 | H37: =MBgastank_PR($H$22,$G$22,G36,F37) -> 158.6324014 | I37: 1666666.667 | J37: =IPRpwf($B$6,$B$7,H37,I37) -> 153.289178 | K37: =Tubingp2($B$8,$B$9,J37,I37) -> 135.6919875 | L37: =linep1($B$10,M37,O37) -> 82.10493911 | M37: =linep1($B$11,N37,C37) -> 78.65608719 | N37: 30 | O37: 6666666.667 | P37: 53.58704843
B38: 16 | C38: 20000000 | D38: 7200000000 | E38: 115200000000 | F38: 0.4266666667 | G38: =ZfacStanding(H38,$B$4,$B$14,2) -> 0.9265724636 | H38: =MBgastank_PR($H$22,$G$22,G37,F38) -> 151.553531 | I38: 1666666.667 | J38: =IPRpwf($B$6,$B$7,H38,I38) -> 145.9513826 | K38: =Tubingp2($B$8,$B$9,J38,I38) -> 128.576157 | L38: =linep1($B$10,M38,O38) -> 82.10493911 | M38: =linep1($B$11,N38,C38) -> 78.65608719 | N38: 30 | O38: 6666666.667 | P38: 46.47121788
B39: 17 | C39: 20000000 | D39: 7200000000 | E39: 122400000000 | F39: 0.4533333333 | G39: =ZfacStanding(H39,$B$4,$B$14,2) -> 0.927048794 | H39: =MBgastank_PR($H$22,$G$22,G38,F39) -> 144.528631 | I39: 1666666.667 | J39: =IPRpwf($B$6,$B$7,H39,I39) -> 138.6429173 | K39: =Tubingp2($B$8,$B$9,J39,I39) -> 121.4517578 | L39: =linep1($B$10,M39,O39) -> 82.10493911 | M39: =linep1($B$11,N39,C39) -> 78.65608719 | N39: 30 | O39: 6666666.667 | P39: 39.34681869
B40: 18 | C40: 20000000 | D40: 7200000000 | E40: 129600000000 | F40: 0.48 | G40: =ZfacStanding(H40,$B$4,$B$14,2) -> 0.9278402081 | H40: =MBgastank_PR($H$22,$G$22,G39,F40) -> 137.5491285 | I40: 1666666.667 | J40: =IPRpwf($B$6,$B$7,H40,I40) -> 131.3510414 | K40: =Tubingp2($B$8,$B$9,J40,I40) -> 114.2998314 | L40: =linep1($B$10,M40,O40) -> 82.10493911 | M40: =linep1($B$11,N40,C40) -> 78.65608719 | N40: 30 | O40: 6666666.667 | P40: 32.19489225
B41: 19 | C41: 20000000 | D41: 7200000000 | E41: 136800000000 | F41: 0.5066666667 | G41: =ZfacStanding(H41,$B$4,$B$14,2) -> 0.9289403998 | H41: =MBgastank_PR($H$22,$G$22,G40,F41) -> 130.6067299 | I41: 1666666.667 | J41: =IPRpwf($B$6,$B$7,H41,I41) -> 124.0622877 | K41: =Tubingp2($B$8,$B$9,J41,I41) -> 107.0986019 | L41: =linep1($B$10,M41,O41) -> 82.10493911 | M41: =linep1($B$11,N41,C41) -> 78.65608719 | N41: 30 | O41: 6666666.667 | P41: 24.99366279
B42: 20 | C42: 20000000 | D42: 7200000000 | E42: 144000000000 | F42: 0.5333333333 | G42: =ZfacStanding(H42,$B$4,$B$14,2) -> 0.930343482 | H42: =MBgastank_PR($H$22,$G$22,G41,F42) -> 123.6934031 | I42: 1666666.667 | J42: =IPRpwf($B$6,$B$7,H42,I42) -> 116.7621141 | K42: =Tubingp2($B$8,$B$9,J42,I42) -> 99.82224865 | L42: =linep1($B$10,M42,O42) -> 82.10493911 | M42: =linep1($B$11,N42,C42) -> 78.65608719 | N42: 30 | O42: 6666666.667 | P42: 17.71730954
B43: 21 | C43: 20000000 | D43: 7200000000 | E43: 151200000000 | F43: 0.56 | G43: =ZfacStanding(H43,$B$4,$B$14,2) -> 0.9320439811 | H43: =MBgastank_PR($H$22,$G$22,G42,F43) -> 116.8013607 | I43: 1666666.667 | J43: =IPRpwf($B$6,$B$7,H43,I43) -> 109.434415 | K43: =Tubingp2($B$8,$B$9,J43,I43) -> 92.43902355 | L43: =linep1($B$10,M43,O43) -> 82.10493911 | M43: =linep1($B$11,N43,C43) -> 78.65608719 | N43: 30 | O43: 6666666.667 | P43: 10.33408444
B44: 22 | C44: 20000000 | D44: 7200000000 | E44: 158400000000 | F44: 0.5866666667 | G44: =ZfacStanding(H44,$B$4,$B$14,2) -> 0.9340368318 | H44: =MBgastank_PR($H$22,$G$22,G43,F44) -> 109.9230431 | I44: 1666666.667 | J44: =IPRpwf($B$6,$B$7,H44,I44) -> 102.060809 | K44: =Tubingp2($B$8,$B$9,J44,I44) -> 84.9082366 | L44: =linep1($B$10,M44,O44) -> 82.10493911 | M44: =linep1($B$11,N44,C44) -> 78.65608719 | N44: 30 | O44: 6666666.667 | P44: 2.803297483
B45: 22.38703483 | C45: 20000000 | D45: 2786650802 | E45: 1.611866508e+11 | F45: 0.5969875956 | G45: =ZfacStanding(H45,$B$4,$B$14,2) -> 0.9348384064 | H45: =MBgastank_PR($H$22,$G$22,G44,F45) -> 107.4074292 | I45: 1666666.667 | J45: =IPRpwf($B$6,$B$7,H45,I45) -> 99.34630936 | K45: =Tubingp2($B$8,$B$9,J45,I45) -> 82.10474844 | L45: =linep1($B$10,M45,O45) -> 82.10493911 | M45: =linep1($B$11,N45,C45) -> 78.65608719 | N45: 30 | O45: 6666666.667 | P45: -0.0001906757128
B46: 24
B47: 25
B48: 26

Sheet Task.2.3
A1: Snohvit Gas Field, Prof. Michael Golan, Prof. Milan Stanko | F1: SOLVING EXPLANATION
A2: G (IGIP), Initial gas in place | B2: =270000000000 -> 270000000000 | C2: [Sm3] | G2: Repeat the procedure given in task 1.1. until plateau ends.
A3: Production days per year (uptime) | B3: 360 | C3: [day] | G3: For the years where Dpchoke is negative,
A4: TR , reservoir temperature | B4: 92 | C4: [°C] | H4: calculate psuc by computing pressure at the plem with flowline equation, pwh and template rate
A5: pRi, initial reservoir pressure | B5: 276 | C5: [bara] | H5: Calculate mass flow by multiplying gas field rate by standard condition density (and change units)
A6: CR, inflow backpressure coefficient | B6: 1000 | C6: [Sm3/bar^2n] | H6: Calculate compressor power by using the VBA equation "compressor_c"
A7: n, inflow backpressure exponent | B7: 1 | C7: [-] | H7: If compressor power is greater than 22 MW, use the goalseek to reduce field rate until compressor power is equal to 22.
A8: Ct, Tubing flow coefficient (2100 MDx0.15 ID m) | B8: 40288.19592 | C8: [Sm3/bar]
A9: S, Tubing elevation coefficient | B9: 0.155 | C9: [-]
A10: CFL , flowline coefficient from template-PLEM (5000x0.355 ID m) | B10: 283126.8662 | C10: [Sm3/bar]
A11: CPL Pipeline coefficient from PLEM-Shore (158600x0.68 ID m) | B11: 275064.3927 | C11: [Sm3/bar]
A12: Separator (slug catcher) pressure | B12: 30 | C12: [bara] | R12: Suction T (Tplem) | S12: [C] | T12: 67
A13: Gas molecular weight (Methane) | B13: 16 | C13: [kg/kmole] | R13: Adiabatic exponent, k | S13: [-] | T13: =k(B14) -> 1.299051676
A14: Gas specific gravity | B14: =$B$13/28.93 -> 0.5530591082 | C14: [-] | R14: Compressor data
A15: Gas density at Sc | B15: =101325/((8314/(0.55*28.97))*(273.15+15.56)) -> 0.6725985864 | C15: [kg/m^3] | R15: Polytropic efficiency, hp | S15: [-] | T15: 0.7
A16: Number of templates | B16: 3 | R16: Maximum compressor power | S16: [MW] | T16: 22
A17: Number of wells per template | B17: 3 | R17: Minimum suction pressure | S17: [bara] | T17: 15
A18: qfield | B18: 20000000 | C18: [Sm^3/d]
Q19: COMPRESSOR
B20: time | C20: qfield | D20: DGp | E20: Gp | F20: Rf | G20: Z | H20: pR | I20: qwell | J20: pwf | K20: pwh | L20: ptemp | M20: pplem | N20: psep | O20: qtemp | P20: Dpchoke | Q20: psuc | R20: m | S20: Compressor power
B21: [years] | C21: [Sm^3/d] | D21: [Sm^3] | E21: [Sm^3] | F21: [-] | G21: [-] | H21: [bara] | I21: [Sm^3/d] | J21: [bara] | K21: [bara] | L21: [bara] | M21: [bara] | N21: [bara] | O21: [Sm^3/d] | P21: [bar] | Q21: [bara] | R21: [kg/s] | S21: [MW]
B22: 0 | C22: =$B$18 -> 20000000 | D22: 0 | E22: 0 | F22: =E22/$B$2 -> 0 | G22: =ZfacStanding(H22,$B$4,$B$14,2) -> 0.9672910643 | H22: =B5 -> 276 | I22: =C22/($B$17*$B$16) -> 2222222.222 | J22: =IPRpwf($B$6,$B$7,H22,I22) -> 271.9444388 | K22: =Tubingp2($B$8,$B$9,J22,I22) -> 245.5457525 | L22: =linep1($B$10,M22,O22) -> 82.10493911 | M22: =linep1($B$11,N22,C22) -> 78.65608719 | N22: =$B$12 -> 30 | O22: =C22/$B$16 -> 6666666.667 | P22: =K22-L22 -> 163.4408134
B23: 1 | C23: =$B$18 -> 20000000 | D23: =(C23+C22)*0.5*(B23-B22)*$B$3 -> 7200000000 | E23: =E22+D23 -> 7200000000 | F23: =E23/$B$2 -> 0.02666666667 | G23: =ZfacStanding(H23,$B$4,$B$14,2) -> 0.9626716683 | H23: =MBgastank_PR($H$22,$G$22,G22,F23) -> 268.64 | I23: =C23/($B$17*$B$16) -> 2222222.222 | J23: =IPRpwf($B$6,$B$7,H23,I23) -> 264.4716003 | K23: =Tubingp2($B$8,$B$9,J23,I23) -> 238.4527902 | L23: =linep1($B$10,M23,O23) -> 82.10493911 | M23: =linep1($B$11,N23,C23) -> 78.65608719 | N23: =$B$12 -> 30 | O23: =C23/$B$16 -> 6666666.667 | P23: =K23-L23 -> 156.3478511
B24: 2 | C24: =$B$18 -> 20000000 | D24: =(C24+C23)*0.5*(B24-B23)*$B$3 -> 7200000000 | E24: =E23+D24 -> 14400000000 | F24: =E24/$B$2 -> 0.05333333333 | G24: =ZfacStanding(H24,$B$4,$B$14,2) -> 0.9575559993 | H24: =MBgastank_PR($H$22,$G$22,G23,F24) -> 260.032231 | I24: =C24/($B$17*$B$16) -> 2222222.222 | J24: =IPRpwf($B$6,$B$7,H24,I24) -> 255.7235596 | K24: =Tubingp2($B$8,$B$9,J24,I24) -> 230.1357307 | L24: =linep1($B$10,M24,O24) -> 82.10493911 | M24: =linep1($B$11,N24,C24) -> 78.65608719 | N24: =$B$12 -> 30 | O24: =C24/$B$16 -> 6666666.667 | P24: =K24-L24 -> 148.0307916
B25: 3 | C25: 20000000 | D25: 7200000000 | E25: 21600000000 | F25: 0.08 | G25: =ZfacStanding(H25,$B$4,$B$14,2) -> 0.9527345012 | H25: =MBgastank_PR($H$22,$G$22,G24,F25) -> 251.3644841 | I25: 2222222.222 | J25: =IPRpwf($B$6,$B$7,H25,I25) -> 246.9046003 | K25: =Tubingp2($B$8,$B$9,J25,I25) -> 221.7346602 | L25: =linep1($B$10,M25,O25) -> 82.10493911 | M25: =linep1($B$11,N25,C25) -> 78.65608719 | N25: 30 | O25: 6666666.667 | P25: 139.6297211
B26: 4 | C26: 20000000 | D26: 7200000000 | E26: 28800000000 | F26: 0.1066666667 | G26: =ZfacStanding(H26,$B$4,$B$14,2) -> 0.9483380869 | H26: =MBgastank_PR($H$22,$G$22,G25,F26) -> 242.8495696 | I26: 2222222.222 | J26: =IPRpwf($B$6,$B$7,H26,I26) -> 238.2303323 | K26: =Tubingp2($B$8,$B$9,J26,I26) -> 213.4532768 | L26: =linep1($B$10,M26,O26) -> 82.10493911 | M26: =linep1($B$11,N26,C26) -> 78.65608719 | N26: 30 | O26: 6666666.667 | P26: 131.3483377
B27: 5 | C27: 20000000 | D27: 7200000000 | E27: 36000000000 | F27: 0.1333333333 | G27: =ZfacStanding(H27,$B$4,$B$14,2) -> 0.9443772231 | H27: =MBgastank_PR($H$22,$G$22,G26,F27) -> 234.5131458 | I27: 2222222.222 | J27: =IPRpwf($B$6,$B$7,H27,I27) -> 229.7263444 | K27: =Tubingp2($B$8,$B$9,J27,I27) -> 205.3148777 | L27: =linep1($B$10,M27,O27) -> 82.10493911 | M27: =linep1($B$11,N27,C27) -> 78.65608719 | N27: 30 | O27: 6666666.667 | P27: 123.2099386
B28: 6 | C28: 20000000 | D28: 7200000000 | E28: 43200000000 | F28: 0.16 | G28: =ZfacStanding(H28,$B$4,$B$14,2) -> 0.9408427307 | H28: =MBgastank_PR($H$22,$G$22,G27,F28) -> 226.3480182 | I28: 2222222.222 | J28: =IPRpwf($B$6,$B$7,H28,I28) -> 221.38474 | K28: =Tubingp2($B$8,$B$9,J28,I28) -> 197.310712 | L28: =linep1($B$10,M28,O28) -> 82.10493911 | M28: =linep1($B$11,N28,C28) -> 78.65608719 | N28: 30 | O28: 6666666.667 | P28: 115.2057729
B29: 7 | C29: 20000000 | D29: 7200000000 | E29: 50400000000 | F29: 0.1866666667 | G29: =ZfacStanding(H29,$B$4,$B$14,2) -> 0.9377229482 | H29: =MBgastank_PR($H$22,$G$22,G28,F29) -> 218.3421144 | I29: 2222222.222 | J29: =IPRpwf($B$6,$B$7,H29,I29) -> 213.1925343 | K29: =Tubingp2($B$8,$B$9,J29,I29) -> 189.4269084 | L29: =linep1($B$10,M29,O29) -> 82.10493911 | M29: =linep1($B$11,N29,C29) -> 78.65608719 | N29: 30 | O29: 6666666.667 | P29: 107.3219693
B30: 8 | C30: 20000000 | D30: 7200000000 | E30: 57600000000 | F30: 0.2133333333 | G30: =ZfacStanding(H30,$B$4,$B$14,2) -> 0.9350063582 | H30: =MBgastank_PR($H$22,$G$22,G29,F30) -> 210.4830842 | I30: 2222222.222 | J30: =IPRpwf($B$6,$B$7,H30,I30) -> 205.136312 | K30: =Tubingp2($B$8,$B$9,J30,I30) -> 181.6488532 | L30: =linep1($B$10,M30,O30) -> 82.10493911 | M30: =linep1($B$11,N30,C30) -> 78.65608719 | N30: 30 | O30: 6666666.667 | P30: 99.54391406
B31: 9 | C31: 20000000 | D31: 7200000000 | E31: 64800000000 | F31: 0.24 | G31: =ZfacStanding(H31,$B$4,$B$14,2) -> 0.9326819355 | H31: =MBgastank_PR($H$22,$G$22,G30,F31) -> 202.7589636 | I31: 2222222.222 | J31: =IPRpwf($B$6,$B$7,H31,I31) -> 197.202878 | K31: =Tubingp2($B$8,$B$9,J31,I31) -> 173.9617411 | L31: =linep1($B$10,M31,O31) -> 82.10493911 | M31: =linep1($B$11,N31,C31) -> 78.65608719 | N31: 30 | O31: 6666666.667 | P31: 91.85680196
B32: 10 | C32: 20000000 | D32: 7200000000 | E32: 72000000000 | F32: 0.2666666667 | G32: =ZfacStanding(H32,$B$4,$B$14,2) -> 0.9307391773 | H32: =MBgastank_PR($H$22,$G$22,G31,F32) -> 195.1582421 | I32: 2222222.222 | J32: =IPRpwf($B$6,$B$7,H32,I32) -> 189.3792947 | K32: =Tubingp2($B$8,$B$9,J32,I32) -> 166.3505208 | L32: =linep1($B$10,M32,O32) -> 82.10493911 | M32: =linep1($B$11,N32,C32) -> 78.65608719 | N32: 30 | O32: 6666666.667 | P32: 84.24558165
B33: 11 | C33: 20000000 | D33: 7200000000 | E33: 79200000000 | F33: 0.2933333333 | G33: =ZfacStanding(H33,$B$4,$B$14,2) -> 0.9291680937 | H33: =MBgastank_PR($H$22,$G$22,G32,F33) -> 187.6698502 | I33: 2222222.222 | J33: =IPRpwf($B$6,$B$7,H33,I33) -> 181.6528295 | K33: =Tubingp2($B$8,$B$9,J33,I33) -> 158.7997266 | L33: =linep1($B$10,M33,O33) -> 82.10493911 | M33: =linep1($B$11,N33,C33) -> 78.65608719 | N33: 30 | O33: 6666666.667 | P33: 76.69478746
B34: 12 | C34: 20000000 | D34: 7200000000 | E34: 86400000000 | F34: 0.32 | G34: =ZfacStanding(H34,$B$4,$B$14,2) -> 0.9279591948 | H34: =MBgastank_PR($H$22,$G$22,G33,F34) -> 180.2831374 | I34: 2222222.222 | J34: =IPRpwf($B$6,$B$7,H34,I34) -> 174.010883 | K34: =Tubingp2($B$8,$B$9,J34,I34) -> 151.2932528 | L34: =linep1($B$10,M34,O34) -> 82.10493911 | M34: =linep1($B$11,N34,C34) -> 78.65608719 | N34: 30 | O34: 6666666.667 | P34: 69.1883137
B35: 13 | C35: 20000000 | D35: 7200000000 | E35: 93600000000 | F35: 0.3466666667 | G35: =ZfacStanding(H35,$B$4,$B$14,2) -> 0.9271034785 | H35: =MBgastank_PR($H$22,$G$22,G34,F35) -> 172.9878505 | I35: 2222222.222 | J35: =IPRpwf($B$6,$B$7,H35,I35) -> 166.440903 | K35: =Tubingp2($B$8,$B$9,J35,I35) -> 143.81406 | L35: =linep1($B$10,M35,O35) -> 82.10493911 | M35: =linep1($B$11,N35,C35) -> 78.65608719 | N35: 30 | O35: 6666666.667 | P35: 61.70912085
B36: 14 | C36: 20000000 | D36: 7200000000 | E36: 100800000000 | F36: 0.3733333333 | G36: =ZfacStanding(H36,$B$4,$B$14,2) -> 0.9265924177 | H36: =MBgastank_PR($H$22,$G$22,G35,F36) -> 165.7741124 | I36: 2222222.222 | J36: =IPRpwf($B$6,$B$7,H36,I36) -> 158.9302807 | K36: =Tubingp2($B$8,$B$9,J36,I36) -> 136.3437852 | L36: =linep1($B$10,M36,O36) -> 82.10493911 | M36: =linep1($B$11,N36,C36) -> 78.65608719 | N36: 30 | O36: 6666666.667 | P36: 54.23884607
B37: 15 | C37: 20000000 | D37: 7200000000 | E37: 108000000000 | F37: 0.4 | G37: =ZfacStanding(H37,$B$4,$B$14,2) -> 0.9264179493 | H37: =MBgastank_PR($H$22,$G$22,G36,F37) -> 158.6324014 | I37: 2222222.222 | J37: =IPRpwf($B$6,$B$7,H37,I37) -> 151.4662225 | K37: =Tubingp2($B$8,$B$9,J37,I37) -> 128.8622133 | L37: =linep1($B$10,M37,O37) -> 82.10493911 | M37: =linep1($B$11,N37,C37) -> 78.65608719 | N37: 30 | O37: 6666666.667 | P37: 46.7572742
B38: 16 | C38: 20000000 | D38: 7200000000 | E38: 115200000000 | F38: 0.4266666667 | G38: =ZfacStanding(H38,$B$4,$B$14,2) -> 0.9265724636 | H38: =MBgastank_PR($H$22,$G$22,G37,F38) -> 151.553531 | I38: 2222222.222 | J38: =IPRpwf($B$6,$B$7,H38,I38) -> 144.0355877 | K38: =Tubingp2($B$8,$B$9,J38,I38) -> 121.3465397 | L38: =linep1($B$10,M38,O38) -> 82.10493911 | M38: =linep1($B$11,N38,C38) -> 78.65608719 | N38: 30 | O38: 6666666.667 | P38: 39.24160054
B39: 17 | C39: 20000000 | D39: 7200000000 | E39: 122400000000 | F39: 0.4533333333 | G39: =ZfacStanding(H39,$B$4,$B$14,2) -> 0.927048794 | H39: =MBgastank_PR($H$22,$G$22,G38,F39) -> 144.528631 | I39: 2222222.222 | J39: =IPRpwf($B$6,$B$7,H39,I39) -> 136.6246792 | K39: =Tubingp2($B$8,$B$9,J39,I39) -> 113.7703125 | L39: =linep1($B$10,M39,O39) -> 82.10493911 | M39: =linep1($B$11,N39,C39) -> 78.65608719 | N39: 30 | O39: 6666666.667 | P39: 31.66537341
B40: 18 | C40: 20000000 | D40: 7200000000 | E40: 129600000000 | F40: 0.48 | G40: =ZfacStanding(H40,$B$4,$B$14,2) -> 0.9278402081 | H40: =MBgastank_PR($H$22,$G$22,G39,F40) -> 137.5491285 | I40: 2222222.222 | J40: =IPRpwf($B$6,$B$7,H40,I40) -> 129.2189635 | K40: =Tubingp2($B$8,$B$9,J40,I40) -> 106.1018661 | L40: =linep1($B$10,M40,O40) -> 82.10493911 | M40: =linep1($B$11,N40,C40) -> 78.65608719 | N40: 30 | O40: 6666666.667 | P40: 23.99692697
B41: 19 | C41: 20000000 | D41: 7200000000 | E41: 136800000000 | F41: 0.5066666667 | G41: =ZfacStanding(H41,$B$4,$B$14,2) -> 0.9289403998 | H41: =MBgastank_PR($H$22,$G$22,G40,F41) -> 130.6067299 | I41: 2222222.222 | J41: =IPRpwf($B$6,$B$7,H41,I41) -> 121.8026915 | K41: =Tubingp2($B$8,$B$9,J41,I41) -> 98.30190774 | L41: =linep1($B$10,M41,O41) -> 82.10493911 | M41: =linep1($B$11,N41,C41) -> 78.65608719 | N41: 30 | O41: 6666666.667 | P41: 16.19696863
B42: 20 | C42: 20000000 | D42: 7200000000 | E42: 144000000000 | F42: 0.5333333333 | G42: =ZfacStanding(H42,$B$4,$B$14,2) -> 0.930343482 | H42: =MBgastank_PR($H$22,$G$22,G41,F42) -> 123.6934031 | I42: 2222222.222 | J42: =IPRpwf($B$6,$B$7,H42,I42) -> 114.3583654 | K42: =Tubingp2($B$8,$B$9,J42,I42) -> 90.31963166 | L42: =linep1($B$10,M42,O42) -> 82.10493911 | M42: =linep1($B$11,N42,C42) -> 78.65608719 | N42: 30 | O42: 6666666.667 | P42: 8.214692543
B43: 21 | C43: 20000000 | D43: 7200000000 | E43: 151200000000 | F43: 0.56 | G43: =ZfacStanding(H43,$B$4,$B$14,2) -> 0.9320439811 | H43: =MBgastank_PR($H$22,$G$22,G42,F43) -> 116.8013607 | I43: 2222222.222 | J43: =IPRpwf($B$6,$B$7,H43,I43) -> 106.8659704 | K43: =Tubingp2($B$8,$B$9,J43,I43) -> 82.08609878 | L43: =linep1($B$10,M43,O43) -> 82.10493911 | M43: =linep1($B$11,N43,C43) -> 78.65608719 | N43: 30 | O43: 6666666.667 | P43: -0.0188403381
B44: 22 | C44: 20000000 | D44: 7200000000 | E44: 158400000000 | F44: 0.5866666667 | G44: =ZfacStanding(H44,$B$4,$B$14,2) -> 0.9340368318 | H44: =MBgastank_PR($H$22,$G$22,G43,F44) -> 109.9230431 | I44: 2222222.222 | J44: =IPRpwf($B$6,$B$7,H44,I44) -> 99.30182871 | K44: =Tubingp2($B$8,$B$9,J44,I44) -> 73.50213044 | L44: =linep1($B$10,M44,O44) -> 82.10493911 | M44: =linep1($B$11,N44,C44) -> 78.65608719 | N44: 30 | O44: 6666666.667 | Q44: =linep2($B$10,K44,O44) -> 69.62845829 | R44: =C44*$B$15/(3600*24) -> 155.6941172 | S44: =Power_c(R44,$T$15,$T$12,Q44,M44,$B$14)/1000000 -> 4.576246723
B45: 23 | C45: 20000000 | D45: 7200000000 | E45: 165600000000 | F45: 0.6133333333 | G45: =ZfacStanding(H45,$B$4,$B$14,2) -> 0.9363173746 | H45: =MBgastank_PR($H$22,$G$22,G44,F45) -> 103.0511026 | I45: 2222222.222 | J45: =IPRpwf($B$6,$B$7,H45,I45) -> 91.63682404 | K45: =Tubingp2($B$8,$B$9,J45,I45) -> 64.4139772 | L45: =linep1($B$10,M45,O45) -> 82.10493911 | M45: =linep1($B$11,N45,C45) -> 78.65608719 | N45: 30 | O45: 6666666.667 | Q45: =linep2($B$10,K45,O45) -> 59.95597955 | R45: =C45*$B$15/(3600*24) -> 155.6941172 | S45: =Power_c(R45,$T$15,$T$12,Q45,M45,$B$14)/1000000 -> 10.56142949
B46: 24 | C46: 20000000 | D46: 7200000000 | E46: 172800000000 | F46: 0.64 | G46: =ZfacStanding(H46,$B$4,$B$14,2) -> 0.9388813539 | H46: =MBgastank_PR($H$22,$G$22,G45,F46) -> 96.17838701 | I46: 2222222.222 | J46: =IPRpwf($B$6,$B$7,H46,I46) -> 83.83352495 | K46: =Tubingp2($B$8,$B$9,J46,I46) -> 54.55745614 | L46: =linep1($B$10,M46,O46) -> 82.10493911 | M46: =linep1($B$11,N46,C46) -> 78.65608719 | N46: 30 | O46: 6666666.667 | Q46: =linep2($B$10,K46,O46) -> 49.21458164 | R46: =C46*$B$15/(3600*24) -> 155.6941172 | S46: =Power_c(R46,$T$15,$T$12,Q46,M46,$B$14)/1000000 -> 19.08777979
B47: 25 | C47: 18918347.9 | D47: 7005302622 | E47: 1.798053026e+11 | F47: 0.6659455653 | G47: =ZfacStanding(H47,$B$4,$B$14,2) -> 0.9416413715 | H47: =MBgastank_PR($H$22,$G$22,G46,F47) -> 89.49110321 | I47: 2102038.656 | J47: =IPRpwf($B$6,$B$7,H47,I47) -> 76.85453076 | K47: =Tubingp2($B$8,$B$9,J47,I47) -> 48.33510298 | L47: =linep1($B$10,M47,O47) -> 78.27189329 | M47: =linep1($B$11,N47,C47) -> 75.0359769 | N47: 30 | O47: 6306115.967 | Q47: =linep2($B$10,K47,O47) -> 42.89744434 | R47: =C47*$B$15/(3600*24) -> 147.2737738 | S47: =Power_c(R47,$T$15,$T$12,Q47,M47,$B$14)/1000000 -> 22.00002185
B48: 26 | C48: 17527371.59 | D48: 6560229507 | E48: 1.863655321e+11 | F48: 0.6902427116 | G48: =ZfacStanding(H48,$B$4,$B$14,2) -> 0.9444582669 | H48: =MBgastank_PR($H$22,$G$22,G47,F48) -> 83.22599026 | I48: 1947485.732 | J48: =IPRpwf($B$6,$B$7,H48,I48) -> 70.56259436 | K48: =Tubingp2($B$8,$B$9,J48,I48) -> 43.90345558 | L48: =linep1($B$10,M48,O48) -> 73.39063697 | M48: =linep1($B$11,N48,C48) -> 70.42984304 | N48: 30 | O48: 5842457.195 | Q48: =linep2($B$10,K48,O48) -> 38.75165298 | R48: =C48*$B$15/(3600*24) -> 136.4454323 | S48: =Power_c(R48,$T$15,$T$12,Q48,M48,$B$14)/1000000 -> 22.00002389
